[Event "German-ch Blitz Women 2022"]
[Site "Magdeburg"]
[Date "2022.08.13"]
[Round "21.6"]
[White "Zhou, Lepu Coco"]
[Black "Kosovska, Olena"]
[Result "0-1"]
[ECO "B32"]
[WhiteElo "1986"]
[BlackElo "1831"]
[Annotator "TA"]
[PlyCount "90"]
[EventDate "2022.08.10"]
[EventType "tourn"]
[EventCountry "GER"]
[SourceTitle "playchess.com"]
[Source "ChessBase"]
[SourceQuality "1"]
[TimeControl "180+2"]

{[%evp 15,90,45,36,0,3,-9,0,-19,-20,-67,-59,-65,-64,-59,-60,-81,-85,-97,-95,-124,-104,-104,-104,-104,-104,-111,-105,-118,-104,-212,-214,-280,-291,-262,-197,-160,-146,-175,-155,-155,-142,-261,-279,-193,-179,-179,-127,-106,-88,-210,-198,-332,-332,-332,-332,-813,-332,-318,-135,-213,-79,-415,-393,-393,-361,-29966,-74,-353,-74,-74,-8,-74,-8,-8,-8,-8,-8]} 1. e4 c5 2. Nf3 Nc6 3. d4 cxd4 4. Nxd4 e5 5. Nb5 a6 6. Nd6+ Bxd6 7. Qxd6 Qf6 8. Qxf6 Nxf6 {[%cal Bg8f6,Bf6d5,Bd5b4,Bb4d3][%mdl 32]} 9. Bd3 {B32: Sicilian: Löwenthal and Kalashnikov Variations.} d5 10. exd5 Nxd5 11. O-O Ndb4 {[#]} 12. f4 $146 (12. Be4 $11 {might be stronger.}) ({Predecessor:} 12. Rd1 Nxd3 13. Rxd3 Bf5 14. Rd2 O-O 15. Na3 Rfd8 16. Rxd8+ Rxd8 17. Be3 Nb4 18. c3 Nxa2 {0-1 (46) Brimble,M (1518)-Gaviria Velazquez,G (2065) Dos Hermanas 2004}) 12... Nxd3 $15 13. cxd3 O-O 14. Nc3 Rd8 15. fxe5 Nxe5 16. Bf4 Nxd3 17. Rad1 Bg4 {Prevents Rf3.} 18. Rd2 Nxf4 {Black is more active.} 19. Rxd8+ Rxd8 20. Rxf4 $17 {[%mdl 4096] Endgame KRB-KRN} Be6 21. h4 Rd2 22. b3 (22. Rb4 $17) 22... h6 $19 23. Rb4 b5 24. a4 Rc2 25. Ne4 bxa4 26. bxa4 Rc4 27. Rxc4 Bxc4 $17 {KB-KN} 28. a5 {[#]} (28. Kf2 $17 {was necessary.}) 28... Kf8 $1 $19 29. Kf2 Ke7 30. Ke3 Bf1 (30... Kd7 $19 31. Kd4 Bf1) 31. g4 $17 Ke6 32. g5 (32. Ng3 $17 Bh3 33. Kf4) 32... hxg5 $19 33. hxg5 (33. Nxg5+ {is the only way for White.} Kf6 34. Kf3) 33... Ke5 34. Ng3 Bb5 35. Nh5 $2 (35. Ne4) 35... g6 (35... Kf5 $142 36. Ng3+ Kxg5 37. Ne4+ Kg6) 36. Nf6 Kf5 (36... Bc4 $19 {Threatens to win with ...Be6.} 37. Ne8 Be6) 37. Ne4 {[#]} (37. Nh7 $17 {was the only chance.}) 37... Bc6 (37... Bd7 $1 $19 {has better winning chances. aiming for ...Be6.} 38. Kd4 Kf4) 38. Nd6+ $2 {[%mdl 8192]} (38. Nc5 $17 {nothing else works.}) 38... Kxg5 {Hoping for ...f5.} 39. Nxf7+ Kf6 40. Nd8 (40. Nh6 $19 Ke5 41. Kd3) 40... Bb5 $2 (40... Bd5 {mates} 41. Kf4 Ke7 42. Kg5 Be4 43. Nb7 Bxb7 44. Kxg6 Kd6 45. Kf6 Kc6 46. Ke5 Kb5 47. Kd4 Kb4 48. Kd3 Kb3 49. Ke3 Bc6 50. Kd4 Bg2 51. Ke3 Ka4 52. Kd2 Be4 53. Kc3 Ka3 54. Kc4 Bc6 55. Kd4 Kb4 56. Kd3 Ba4 57. Kd2 Kb3 58. Ke3 Bc6 59. Kf2 Ka4 60. Ke3 Kb4 61. Kd3 Ba4 62. Ke3 Kc3 63. Kf4 Kd2 64. Kg5 Bb5 65. Kg4 Bc6 66. Kf5 Kc3 67. Kf4 Kd2 68. Kg4 Bd5 69. Kf5 Ke3 70. Kg4 Be4 71. Kg3 Bf3 72. Kh3 Kf2 73. Kh4 Be2 74. Kg5 Ke3 75. Kh6 Ke4 76. Kg6 Bf3 77. Kg5 Ke5 78. Kh4 Kf4 79. Kh3 Bd5 80. Kh2 Kf3 81. Kh3 Kf4 82. Kh4 Bf3 83. Kh3 Be4 84. Kh4 Kf3 85. Kg5 Kg3 86. Kh5 Bb1 87. Kg5 Be4 88. Kh5 Bf3+ 89. Kg5 Bg4 90. Kf6 Kf4 91. Kg6 Bf3 92. Kf6 Be4 93. Ke6 Bb7 94. Kf6) 41. Nb7 $2 {[%mdl 8192]} (41. Kf4 $17 {was the only defense.}) 41... g5 $2 (41... Ke5 $19 {is more deadly. White must now prevent ...Bf1.} 42. Nd8 Kd5) 42. Nd6 Bf1 (42... Bd7 $17 43. Ne4+ Kg6) 43. Kf3 (43. Kf2 $1 $11) 43... Ke6 (43... Bh3 $17) 44. Ne4 $11 Kd5 45. Nxg5 Kc5 {[%mdl 32768] Weighted Error Value: White=0.84/Black=0.63. Sensor Board Error (Ke4/e5)?} 0-1

[Event "German-ch Blitz Women 2022"]
[Site "Magdeburg"]
[Date "2022.08.13"]
[Round "21.7"]
[White "Muetsch, Annmarie"]
[Black "Falke, Ornella"]
[Result "1-0"]
[ECO "B51"]
[WhiteElo "2249"]
[BlackElo "1912"]
[Annotator "TA"]
[PlyCount "41"]
[EventDate "2022.08.10"]
[EventType "tourn"]
[EventCountry "GER"]
[SourceTitle "playchess.com"]
[Source "ChessBase"]
[SourceQuality "1"]
[TimeControl "180+2"]

{[%evp 9,41,-59,9,0,15,10,33,27,35,27,35,39,52,34,41,35,83,74,158,148,111,48,145,17,125,130,148,91,84,2,165,173,1326,1289]} 1. e4 {[%emt 0:00:01]} c5 {[%emt 0:00:01]} 2. Nf3 {[%emt 0:00:02]} d6 {[%emt 0:00:02]} 3. Bb5+ {[%emt 0:00:02]} Nd7 {[%emt 0:00:02]} 4. Ba4 {[%emt 0:00:04]} Ngf6 {[%emt 0:00:02]} 5. c4 {[%emt 0:00:02]} g6 {[%emt 0:00:11]} ({Black should try} 5... Nxe4 $15 6. d3 Nef6) 6. O-O {[%emt 0:00:02] B51: Sicilian: Moscow Variation (3 Bb5+) without 3...Bd7.} Bg7 {[%emt 0:00:02]} 7. Nc3 {[%emt 0:00:02]} e5 {[%emt 0:00:24]} 8. d3 {[%emt 0:00:04] White is slightly better.} O-O {[%emt 0:00:06]} 9. h3 {[%emt 0:00:06] [#]} h6 $146 {[%emt 0:00:20]} ({Predecessor:} 9... Nb6 10. Bc2 Nh5 11. Rb1 Nf4 12. b4 Ne6 13. bxc5 dxc5 14. Nd5 Nd7 15. Bb2 f6 {½-½ (42) Khusnutdinov,R (2491)-G,A (2495) Chess.com INT 2020}) 10. Bd2 {[%emt 0:00:17]} a6 {[%emt 0:00:05]} 11. a3 {[%emt 0:00:03]} Rb8 {[%emt 0:00:42]} 12. b4 {[%emt 0:00:05]} Qc7 {[%emt 0:00:20]} (12... Nh5 $14) 13. Rb1 {[%emt 0:00:10]} Ne8 {[%emt 0:00:11]} (13... b6 $142) 14. Nd5 $16 {[%emt 0:00:04]} Qd8 {[%emt 0:00:00]} 15. b5 {[%emt 0:00:08]} (15. Bxd7 $16 Bxd7 16. bxc5) 15... f5 {[%emt 0:00:15]} (15... axb5 $14 16. Bxb5 Ndf6) 16. Qe1 {[%emt 0:00:23] 0x0.001b83e802e1dp-1022s more active pieces. The black rooks are badly placed.} (16. bxa6 $16 {Strongly threatening exf5.} fxe4 17. axb7 (17. dxe4 bxa6 18. Rxb8 Nxb8 $16) 17... Rxb7 18. Rxb7 (18. dxe4 Rxb1 19. Qxb1 Ndf6 $16) 18... Bxb7 19. dxe4) 16... b6 {[%emt 0:00:07]} (16... Ra8 $11) 17. bxa6 {[%emt 0:00:06]} Bxa6 {[%emt 0:00:01] [#]} 18. Bxd7 {[%emt 0:00:06]} (18. Nh4 $142 $1 {[%mdl 512]}) 18... Qxd7 {[%emt 0:00:03]} 19. Nxb6 {[%emt 0:00:07] Pair of Knights!} ({White should play} 19. Nh4 $16 fxe4 20. Nxg6) 19... Qc6 $2 {[%emt 0:00:08]} (19... Qa7 $1 $11 20. Ba5 Rf7) 20. Nd5 $18 {[%emt 0:00:02]} Nf6 $2 {[%emt 0:00:05]} (20... Rxb1 21. Qxb1 (21. Ne7+ Kh7 $11) 21... Kh7) 21. Ne7+ {[%emt 0:00:02] Weighted Error Value: White=0.35/Black=0.61} 1-0

[Event "German-ch Blitz Women 2022"]
[Site "Magdeburg"]
[Date "2022.08.13"]
[Round "21.8"]
[White "Daemering, Katrin"]
[Black "Stangl, Anita"]
[Result "1-0"]
[ECO "C00"]
[WhiteElo "1965"]
[BlackElo "2023"]
[Annotator "TA"]
[PlyCount "63"]
[EventDate "2022.08.10"]
[EventType "tourn"]
[EventCountry "GER"]
[SourceTitle "playchess.com"]
[Source "ChessBase"]
[SourceQuality "1"]
[TimeControl "180+2"]

{[%evp 9,62,12,17,4,18,-11,-4,-4,-14,-5,0,-13,0,-31,29,-16,-14,-39,236,220,208,225,207,222,359,362,369,368,365,49,57,-35,85,0,0,-10,-16,-57,98,100,105,-236,164,37,956,949,29996,29979,29996,29997,29997,29998,29998,29999,29999]} 1. e4 {[%emt 0:00:01]} e6 {[%emt 0:00:00]} 2. d3 d5 3. Qe2 {[%emt 0:00:01]} dxe4 {[%emt 0:00:02]} 4. dxe4 {[%emt 0:00:01]} c5 {[%emt 0:00:03]} 5. Nc3 {[%emt 0:00:03]} Nc6 {[%emt 0:00:01]} 6. Nf3 {[%emt 0:00:02] [#] C00: French: Unusual White 2nd moves.} Nf6 $146 {[%emt 0:00:02]} ({Predecessor:} 6... Nd4 7. Qd3 a6 8. Ne2 Nxf3+ 9. Qxf3 e5 10. Nc3 Be6 11. Be2 Ne7 12. O-O Nc6 13. Qg3 {1-0 (25) Schippke,M (1794)-Tran,A (1570) Tornelo INT 2020}) 7. Bd2 {[%emt 0:00:03]} a6 $1 {[%emt 0:00:04]} 8. O-O-O {[%emt 0:00:03] The position is equal.} Qc7 {[%emt 0:00:07]} 9. g3 {[%emt 0:00:10]} Be7 {[%emt 0:00:04]} 10. Bg2 {[%emt 0:00:07]} O-O {[%emt 0:00:02]} 11. Bf4 {[%emt 0:00:03]} Qa5 {[%emt 0:00:02]} ({Black should try} 11... e5 $15 12. Bg5 Nd4) 12. Kb1 {[%emt 0:00:14]} b5 $1 {[%emt 0:00:14] ...b4 is the strong threat.} 13. e5 {[%emt 0:00:05]} Nh5 {[%emt 0:00:03][%mdl 8192]} (13... Nd5 $1 $15 {keeps the upper hand.}) 14. Bd2 {[%emt 0:00:13]} b4 {[%emt 0:00:06]} 15. Ne4 {[%emt 0:00:07]} Bb7 {[%emt 0:00:14]} 16. g4 {[%emt 0:00:03]} Nd4 {[%emt 0:00:21]} (16... f5 $142) 17. Nxd4 $18 {[%emt 0:00:05]} cxd4 {[%emt 0:00:02]} 18. gxh5 {[%emt 0:00:04]} Qxe5 {[%emt 0:00:02] [#]} 19. Qg4 $2 {[%emt 0:00:17]} (19. Nf6+ $1 $18 {[%mdl 512]} Bxf6 20. Qxe5 Bxe5 21. Bxb7) 19... f5 $14 {[%emt 0:00:07]} 20. Bf4 {[%emt 0:00:50]} (20. f4 $1 $14 Qa5 21. Qe2 (21. Qh3 Bd5 $14)) 20... Qb5 {[%emt 0:00:17] [#]} (20... Qa5 $1 $15 21. Qg3 (21. Qh3 Bd5 $17) 21... fxe4) 21. Qg3 $1 {[%emt 0:00:03]} fxe4 $11 {[%emt 0:00:07]} 22. h6 {[%emt 0:00:08][%csl Gh6][%cal Rg3g7]} (22. Rxd4 $2 Rxf4 $1 {[%mdl 512]} 23. Qxf4 e5 $19) 22... g6 {[%emt 0:00:04]} 23. Rxd4 {[%emt 0:00:06]} Bd5 {[%emt 0:00:06]} (23... Bf6 $1 $15 {stays ahead.} 24. Rxe4 Bxe4 25. Bxe4 Rad8) 24. Bxe4 $40 {[%emt 0:00:07][%mdl 128] White attacks with force.} Bf6 {[%emt 0:00:30] [#]} 25. Bxg6 $2 {[%emt 0:00:03][%mdl 8192] Chess con chili.} Kh8 $4 {[%emt 0:00:05][%mdl 8192] [#]} ({Don't do} 25... Bxa2+ 26. Kxa2 Kh8 27. Be3 $1 hxg6 28. Qxg6 $18) (25... hxg6 $19 {and life is good for Black.} 26. Qxg6+ Kh8) 26. Bd3 {[%emt 0:00:05]} (26. Be4 $1 $18 {[%cal Od4d5] Strongly threatening Rxd5!} Bxa2+ 27. Kxa2 Bxd4 28. Bxa8 (28. Kb1 Rg8 $15) 28... b3+ 29. Qxb3 Rxf4 30. f3) 26... Bxh1 {[%emt 0:00:14][%mdl 8192]} 27. Bxb5 $18 {[%emt 0:00:04][%cal Of4e5,Bd3b5,Bb5c4,Bc4e6][%mdl 32] White wants to mate with Be5!} Bxd4 {[%emt 0:00:02]} 28. Bc4 {[%emt 0:00:08] White mates.} Ra7 {[%emt 0:00:32]} 29. Be5+ {[%emt 0:00:05]} Bxe5 {[%emt 0:00:01]} 30. Qxe5+ {[%emt 0:00:01]} Kg8 {[%emt 0:00:01]} 31. Bxe6+ {[%emt 0:00:01]} Raf7 {[%emt 0:00:03]} 32. Qg7# {[%emt 0:00:03] Weighted Error Value: White=0.70/Black=0.69} 1-0

[Event "German-ch Blitz Women 2022"]
[Site "Magdeburg"]
[Date "2022.08.13"]
[Round "21.9"]
[White "Khrapko, Marharyta"]
[Black "Wulf, Constanze"]
[Result "1-0"]
[ECO "B01"]
[WhiteElo "2128"]
[BlackElo "1835"]
[Annotator "NA RC"]
[PlyCount "57"]
[EventDate "2022.08.10"]
[EventType "tourn"]
[EventCountry "GER"]
[SourceTitle "playchess.com"]
[Source "ChessBase"]
[SourceQuality "1"]
[TimeControl "180+2"]

1. e4 {[%emt 0:00:01]} d5 {[%emt 0:00:01]} 2. exd5 {[%emt 0:00:01]} Qxd5 {[%emt 0:00:01]} 3. Nf3 {[%emt 0:00:01]} Bg4 {[%emt 0:00:03]} 4. Be2 {[%emt 0:00:01]} Nc6 {[%emt 0:00:06]} 5. c4 {[%emt 0:00:01]} Qd6 {[%emt 0:00:11]} 6. d4 {[%emt 0:00:02]} O-O-O {[%emt 0:00:07]} 7. Be3 {[%emt 0:00:02]} g6 {[%emt 0:00:25]} 8. O-O {[%emt 0:00:08]} Bg7 {[%emt 0:00:01]} 9. Nc3 {[%emt 0:00:21]} Bxf3 {[%emt 0:00:24]} 10. Bxf3 {[%emt 0:00:02]} Nxd4 {[%emt 0:00:05]} 11. Bxd4 {[%emt 0:00:03]} Qxd4 {[%emt 0:00:07]} 12. Qb3 {[%emt 0:00:03]} Qb6 {[%emt 0:00:10]} 13. Qa3 {[%emt 0:00:50]} e6 {[%emt 0:00:11]} 14. c5 {[%emt 0:00:03]} Qa6 {[%emt 0:00:11]} 15. Qb4 {[%emt 0:00:34]} Rd4 {[%emt 0:00:10]} 16. Qb3 {[%emt 0:00:06]} Ne7 {[%emt 0:00:11]} 17. Nb5 {[%emt 0:00:05]} Rd2 {[%emt 0:00:10]} 18. Rab1 {[%emt 0:00:09]} Rhd8 {[%emt 0:00:05]} 19. Rfd1 {[%emt 0:00:10]} Nc6 {[%emt 0:00:23]} 20. Bxc6 {[%emt 0:00:10]} bxc6 {[%emt 0:00:04]} 21. Nd6+ {[%emt 0:00:03]} cxd6 {[%emt 0:00:15]} 22. Rxd2 {[%emt 0:00:02]} dxc5 {[%emt 0:00:10]} 23. Rxd8+ {[%emt 0:00:03]} Kxd8 {[%emt 0:00:01]} 24. Qb8+ {[%emt 0:00:02]} Ke7 {[%emt 0:00:03]} 25. Qc7+ {[%emt 0:00:02]} Kf6 {[%emt 0:00:04]} 26. Qd8+ {[%emt 0:00:17]} Kf5 {[%emt 0:00:03]} 27. h3 {[%emt 0:00:08]} Qxa2 {[%emt 0:00:04]} 28. g4+ {[%emt 0:00:02]} Kf4 {[%emt 0:00:06]} 29. Qd2+ {[%emt 0:00:04]} 1-0

[Event "German-ch Blitz Women 2022"]
[Site "Magdeburg"]
[Date "2022.08.13"]
[Round "21.10"]
[White "Grabowski, Petra"]
[Black "Doll, Rebecca"]
[Result "1/2-1/2"]
[ECO "D55"]
[WhiteElo "1643"]
[BlackElo "1933"]
[Annotator "TA"]
[PlyCount "98"]
[EventDate "2022.08.10"]
[EventType "tourn"]
[EventCountry "GER"]
[SourceTitle "playchess.com"]
[Source "ChessBase"]
[SourceQuality "1"]
[TimeControl "180+2"]

{[%evp 12,98,31,27,45,43,47,49,60,57,80,54,133,56,44,45,71,19,20,0,2,18,27,0,0,-16,0,-7,0,0,0,-12,-17,-24,0,-37,-42,-43,-12,-17,-25,-31,-12,-12,-9,-7,-8,-7,-6,-6,-6,-6,-6,-28,-25,-33,0,0,0,-4,0,0,0,-4,0,-11,0,0,0,-21,-22,-27,0,0,0,0,0,0,0,0,0,0,0,0,0,0,0,0,0]} 1. d4 {[%emt 0:00:01]} d5 {[%emt 0:00:01]} 2. c4 {[%emt 0:00:02]} e6 {[%emt 0:00:01]} 3. Nc3 {[%emt 0:00:01]} Be7 {[%emt 0:00:02]} 4. Nf3 {[%emt 0:00:04]} Nf6 {[%emt 0:00:02]} 5. Bg5 {[%emt 0:00:02]} O-O {[%emt 0:00:06]} 6. e3 {[%emt 0:00:02]} a6 {[%emt 0:00:01]} 7. Qc2 {[%emt 0:00:04]} c5 {[%emt 0:00:05] D55: Queen's Gambit Declined: 4 Bg5 Be7: Lines without ...h6 and 6...h6 7 Bxf6.} 8. dxc5 {[%emt 0:00:05]} dxc4 {[%emt 0:00:15]} 9. Bxc4 {[%emt 0:00:09]} Bxc5 {[%emt 0:00:30] White is slightly better.} 10. O-O {[%emt 0:00:08]} h6 {[%emt 0:00:14]} 11. Bh4 {[%emt 0:00:04] White is more active.} b5 {[%emt 0:00:13]} (11... Nbd7 $14) 12. Be2 {[%emt 0:00:06]} (12. Bxf6 $16 Qxf6 13. Ne4) 12... Nbd7 $14 {[%emt 0:00:05][%cal Bb8d7,Bd7f6,Bf6d5][%mdl 32]} 13. Rfd1 {[%emt 0:00:08]} Qc7 {[%emt 0:00:09] [#] Against Ne5} 14. Bg3 $146 {[%emt 0:00:20]} (14. Bxf6 $16 Nxf6 15. Nxb5) ({Predecessor:} 14. Rac1 Be7 15. Nd5 Nxd5 16. Qxc7 Nxc7 17. Bxe7 Re8 18. Rxc7 Rxe7 19. Ne5 Nxe5 20. Rxe7 Rb8 21. Rd8+ {1-0 (22) Sriram,J (2446)-Ajay,D (1865) Bhubaneswar 2011}) 14... Qa7 $11 {[%emt 0:00:11]} 15. Ne4 {[%emt 0:00:13]} (15. Ne5 {keeps more tension.} Nxe5 16. Bxe5 Bb7 17. Bxf6 gxf6 18. Rd7) 15... Nxe4 {[%emt 0:00:09]} 16. Qxe4 {[%emt 0:00:02]} Nf6 {[%emt 0:00:14]} 17. Qc2 {[%emt 0:00:10]} (17. Qh4 $5 {[%cal Rf3e5]}) 17... Bb7 {[%emt 0:00:07]} 18. Be5 {[%emt 0:00:13]} Nd5 {[%emt 0:00:09]} (18... Bxe3 {looks sharper.} 19. fxe3 Qxe3+ 20. Kh1 Bxf3 21. Bxf3 Qxe5 22. Bxa8 Ng4) 19. Bd4 {[%emt 0:00:05]} Rac8 {[%emt 0:00:08][%cal Ba8c8,Bc8c5,Bc5c2][%mdl 32] [#] Strongly threatening ...Bxd4.} 20. Bxc5 {[%emt 0:00:10]} Rxc5 {[%emt 0:00:01]} 21. Qb3 {[%emt 0:00:12]} Rfc8 {[%emt 0:00:05]} 22. Nd4 {[%emt 0:00:09]} (22. a4 {seems wilder.} bxa4 23. Qxa4 Rc2 24. Qd4) 22... Nf6 {[%emt 0:00:08]} 23. Bf3 {[%emt 0:00:04]} Bxf3 {[%emt 0:00:07]} 24. Nxf3 {[%emt 0:00:02]} Rc2 {[%emt 0:00:02]} 25. Nd4 {[%emt 0:00:02]} R2c4 {[%emt 0:00:01]} 26. Ne2 {[%emt 0:00:09][%cal Bd4e2,Be2c1,Bc1d3][%mdl 32]} Ne4 {[%emt 0:00:06]} 27. Rac1 {[%emt 0:00:05]} Rxc1 {[%emt 0:00:08]} 28. Rxc1 {[%emt 0:00:01]} Rxc1+ {[%emt 0:00:02]} 29. Nxc1 {[%mdl 4096] Endgame KQN-KQN} Qc5 {[%emt 0:00:01]} 30. Nd3 {[%emt 0:00:15]} Qc6 {[%emt 0:00:05]} 31. Qd1 {[%emt 0:00:07]} a5 {[%emt 0:00:11]} 32. b3 {[%emt 0:00:04]} b4 {[%emt 0:00:06]} 33. Qc1 {[%emt 0:00:05]} Qc3 {[%emt 0:00:10]} 34. Qxc3 {[%emt 0:00:08]} Nxc3 {[%emt 0:00:01] KN-KN} ({Don't play} 34... bxc3 35. f3 Nf6 36. Kf2 $16) 35. Nc1 {[%emt 0:00:02]} Kf8 {[%emt 0:00:02]} 36. Kf1 {[%emt 0:00:01]} Ke7 {[%emt 0:00:01]} 37. Ke1 {[%emt 0:00:01]} Kd6 {[%emt 0:00:01]} 38. Kd2 {[%emt 0:00:02]} Ne4+ {[%emt 0:00:03]} 39. Ke2 {[%emt 0:00:02]} Nc5 {[%emt 0:00:05]} 40. Kd2 {[%emt 0:00:07]} e5 {[%emt 0:00:01]} 41. Nd3 {[%emt 0:00:03]} Nxd3 {[%emt 0:00:03]} 42. Kxd3 {[%emt 0:00:01] [#] Threatens to win with Kc4. KP-KP. The position is equal.} Kd5 {[%emt 0:00:01]} 43. f3 {[%emt 0:00:01]} f5 {[%emt 0:00:03]} 44. e4+ {[%emt 0:00:06]} fxe4+ {[%emt 0:00:02]} 45. fxe4+ {[%emt 0:00:00]} Kc5 {[%emt 0:00:02]} 46. h4 {[%emt 0:00:10]} h5 {[%emt 0:00:02]} 47. g3 {[%emt 0:00:07]} g6 {[%emt 0:00:02]} 48. Ke3 {[%emt 0:00:03]} Kd6 {[%emt 0:00:05]} 49. Kd3 {[%emt 0:00:01]} Kc5 {Weighted Error Value: White=0.11 (very precise) /Black=0.08 (flawless)} 1/2-1/2

[Event "German-ch Blitz Women 2022"]
[Site "Magdeburg"]
[Date "2022.08.13"]
[Round "21.11"]
[White "Braun, Kristin"]
[Black "Kunze, Kerstin"]
[Result "1/2-1/2"]
[ECO "C50"]
[WhiteElo "1897"]
[BlackElo "2020"]
[Annotator "TA"]
[PlyCount "92"]
[EventDate "2022.08.10"]
[EventType "tourn"]
[EventCountry "GER"]
[SourceTitle "playchess.com"]
[Source "ChessBase"]
[SourceQuality "1"]
[TimeControl "180+2"]

{[%evp 10,92,33,18,29,13,16,15,25,-15,-15,-15,-26,-12,-22,-3,-6,-29,-26,-26,0,0,44,14,53,35,77,0,0,0,0,-135,-136,-193,-125,-141,-124,-599,-583,-590,-579,-656,-664,-650,-455,-650,-648,-656,-654,-654,-639,-1199,-1166,-29962,-6518,-5218,-1669,-1675,-1702,-1890,-1816,-1810,-1779,-2212,-2065,-6231,-5907,-5141,-5130,-6606,-4986,-29979,-29980,-29984,-29972,-29978,0,-29984,-29985,-29989,-29990,-29990,-29989,-29991,-29992]} 1. e4 {[%emt 0:00:00]} e5 2. Nf3 Nc6 {[%emt 0:00:02]} 3. Bc4 {[%emt 0:00:01]} Nf6 {[%emt 0:00:03]} 4. d3 {[%emt 0:00:01]} Bc5 5. c3 O-O {[%emt 0:00:11]} 6. Nbd2 {[%emt 0:00:01]} a6 {[%emt 0:00:05] C54: Giuoco Piano: 4 c3 Nf6, main lines with 5 d4 and 5 d3.} 7. h3 b5 {[%emt 0:00:04]} 8. Bb3 {[%emt 0:00:03]} Bb7 {[%emt 0:00:03] The position is equal.} 9. Nf1 {[%emt 0:00:02]} d5 {[%emt 0:00:07] [#]} 10. Ng3 $146 {[%emt 0:00:09]} ({Predecessor:} 10. exd5 Nxd5 11. Ng3 h6 12. O-O {½-½ (13) Rekhson,V-Yearwood,R (2072) Edmonton 2005}) 10... dxe4 {[%emt 0:00:10]} 11. dxe4 {[%emt 0:00:00]} Qxd1+ {[%emt 0:00:08]} (11... Na5 {keeps more tension.} 12. Qe2 Nxb3 13. axb3 Re8) 12. Bxd1 {[%emt 0:00:01]} Rfe8 {[%emt 0:00:09]} 13. Bc2 {[%emt 0:00:10]} b4 {[%emt 0:00:09]} 14. Bd2 {[%emt 0:00:06]} a5 {[%emt 0:00:04]} 15. Ba4 {[%emt 0:00:10]} Nd7 {[%emt 0:00:38]} 16. O-O {[%emt 0:00:05]} Nb6 {[%emt 0:00:02]} 17. Bb5 {[%emt 0:00:21]} Red8 {[%emt 0:00:27]} 18. Rad1 {[%emt 0:00:17]} (18. cxb4 $16 Nxb4 19. Rac1) 18... Na7 $11 {[%emt 0:00:05]} 19. Be2 {[%emt 0:00:14]} f6 {[%emt 0:00:00]} 20. Nf5 {[%emt 0:00:05]} (20. cxb4 $11 axb4 21. Rc1) 20... Bxe4 $17 {[%emt 0:00:03]} 21. Ne3 {[%emt 0:00:11]} (21. Ng3 $17 {might work better.} Bd5 22. Rc1) 21... Rd7 {[%emt 0:00:13]} (21... Bd3 $19 22. Bxd3 Rxd3) 22. Nc4 {[%emt 0:00:22]} Rad8 {[%emt 0:00:18][%cal Ba8d8,Bd8d2,Bd2b2][%mdl 32] [#] aiming for ...Nxc4.} 23. Ne3 {[%emt 0:00:29][%mdl 8192]} (23. cxb4 $17 axb4 24. Rc1) 23... Bxf3 $19 {[%emt 0:00:05]} 24. Bxf3 {[%emt 0:00:06]} Rxd2 {[%emt 0:00:01]} 25. Rxd2 {[%emt 0:00:02]} Rxd2 {[%emt 0:00:01]} 26. cxb4 {[%emt 0:00:01]} Bxe3 {[%emt 0:00:06]} 27. fxe3 {[%emt 0:00:02]} (27. bxa5 $142 Bd4 28. axb6 cxb6 29. Kh2) 27... axb4 28. Rc1 {[%emt 0:00:03]} c6 {[%emt 0:00:04]} 29. Bxc6 {[%emt 0:00:06]} Rxb2 {[%emt 0:00:04]} 30. e4 {[%emt 0:00:24]} Rxa2 {[%emt 0:00:03] [#] And now ...b3 would win.} 31. Bd5+ {[%emt 0:00:00]} Nxd5 32. exd5 {[%emt 0:00:01][%mdl 4096] Endgame KRN-KR} Rd2 {[%emt 0:00:04] Threatens to win with ...b3.} 33. Rb1 {[%emt 0:00:03]} Rd4 {[%emt 0:00:03] White must now prevent ...Nb5.} 34. d6 {[%emt 0:00:02]} Kf7 {[%emt 0:00:02]} 35. d7 {[%emt 0:00:03]} Ke7 {[%emt 0:00:01]} 36. Kf2 {[%emt 0:00:01]} Kxd7 {[%emt 0:00:01] Strongly threatening ...Nb5.} 37. Ke3 {[%emt 0:00:01]} Kd6 {[%emt 0:00:02]} 38. g4 {[%emt 0:00:01]} Nc6 {[%emt 0:00:02]} 39. h4 {[%emt 0:00:02]} Kd5 {[%emt 0:00:00]} 40. g5 {[%emt 0:00:00]} fxg5 {[%emt 0:00:02]} 41. hxg5 {[%emt 0:00:01]} Re4+ {[%emt 0:00:01]} 42. Kf3 {[%emt 0:00:02]} Rd4 {[%emt 0:00:02]} 43. Ke3 {[%emt 0:00:01]} e4 {[%emt 0:00:01] Black mates.} 44. Rf1 {[%emt 0:00:03]} Rd3+ {[%emt 0:00:01]} 45. Ke2 {[%emt 0:00:00]} Rf3 {[%emt 0:00:02]} 46. Rd1+ {[%emt 0:00:01]} Nd4+ {[%emt 0:00:05][%mdl 32768] Weighted Error Value: White=1.23/Black=0.37. An unexpected result.} 1/2-1/2